bitfinex-derivatives/quotes_SOLF0:USTF0_20250215
["timestamp","ask_amount","ask_price","bid_price","bid_amount"]
[1739629329449,5.1391,194.56,194.48,14.27713598]
[1739629329942,5.1391,194.56,194.52,5.14]
[1739629330145,0.03493683,194.54,194.52,5.14]
[1739629331344,0.03493683,194.54,194.51,5.1403]
[1739629332343,0.03493683,194.54,194.5,0.03528611]
[1739629334051,0.03493683,194.54,194.51,5.1403]
[1739629335159,0.03493683,194.54,194.5,0.03528611]
[1739629335347,0.03493683,194.54,194.53,5.1398]
[1739629337045,0.03493683,194.54,194.51,1.6537]
[1739629337349,0.03493683,194.54,194.52,5.14]
[1739629337550,0.03493683,194.54,194.5,0.03528611]
[1739629337855,0.03493683,194.54,194.51,5.1403]
[1739629338054,0.03493683,194.54,194.5,0.03528611]
[1739629338542,14.27713598,194.53,194.5,0.03528611]
[1739629338951,5.1411,194.48,194.47,28.46399647]
[1739629340251,5.1411,194.48,194.46,0.0384004]
[1739629342253,5.1414,194.47,194.46,0.0384004]
[1739629344353,0.03813914,194.49,194.46,0.0384004]
[1739629344650,5.17923914,194.49,194.46,0.0384004]
[1739629344852,0.03813914,194.49,194.46,0.0384004]
[1739629346054,5.1411,194.48,194.46,0.0384004]
[1739629346742,5.1414,194.47,194.46,0.0384004]
[1739629346944,19.41853598,194.47,194.46,0.0384004]
[1739629347143,14.27713598,194.47,194.38,3.0553]
[1739629348150,14.27713598,194.5,194.38,3.0553]
[1739629348355,0.03468754,194.44,194.41,0.03376504]
[1739629350055,14.31182352,194.44,194.41,0.03376504]
[1739629350349,5.1426,194.43,194.41,0.03376504]
[1739629351753,14.31182352,194.44,194.41,0.03376504]
[1739629352053,5.1427,194.42,194.41,0.03376504]
[1739629352453,5.1425,194.43,194.41,0.03376504]
[1739629352954,14.31182352,194.44,194.41,0.03376504]
[1739629353154,5.1427,194.42,194.41,0.03376504]
[1739629355454,5.1424,194.43,194.41,0.03376504]
[1739629356657,5.1427,194.42,194.41,0.03376504]
[1739629358053,5.144,194.37,194.34,5.1447]
[1739629358855,5.144,194.37,194.32,6.6693]
[1739629359168,14.27713598,194.41,194.32,5.1451]
[1739629359460,5.18009347,194.36,194.33,0.03294511]
[1739629360159,0.03579347,194.36,194.33,0.03294511]
[1739629360360,5.1446,194.35,194.33,0.03294511]
[1739629360556,0.03579347,194.36,194.33,0.03294511]
[1739629361058,5.18009347,194.36,194.33,0.03294511]
[1739629361259,0.03579347,194.36,194.33,0.03294511]
[1739629361663,5.18009347,194.36,194.33,0.03294511]
[1739629363559,14.33188147,194.36,194.33,0.03294511]
[1739629367868,9.18758147,194.36,194.33,5.17784511]
[1739629368467,9.18758147,194.36,194.34,5.1447]
[1739629369668,0.03579347,194.36,194.35,5.1445]
[1739629369871,0.03579347,194.36,194.35,14.296288]
[1739629370964,9.151788,194.42,194.41,5.1429]
[1739629371269,9.151788,194.44,194.39,9.151788]
[1739629371569,191.0,194.47,194.36,14.28579073]
[1739629372169,0.03510432,194.43,194.4,0.03570893]
[1739629373459,0.03510432,194.43,194.41,5.1427]
[1739629374868,0.03510432,194.43,194.4,0.03570893]
[1739629376674,5.17750432,194.43,194.4,0.03570893]
[1739629377068,0.03510432,194.43,194.4,0.03570893]
[1739629379676,5.17750432,194.43,194.4,0.03570893]
[1739629380373,5.1427,194.42,194.4,0.03570893]
[1739629381769,5.17760432,194.43,194.4,0.03570893]
[1739629382377,0.03510432,194.43,194.4,0.03570893]
[1739629382577,5.1429,194.41,194.4,0.03570893]
[1739629382875,14.28579073,194.42,194.29,3.2027]
[1739629383176,14.28579073,194.39,194.29,3.2027]
[1739629383878,19.42949073,194.39,194.29,3.2027]
[1739629384179,0.03474412,194.36,194.32,0.03481664]
[1739629385969,0.03474412,194.36,194.33,5.145]
[1739629386176,5.17904412,194.36,194.32,0.03481664]
[1739629386677,5.17904412,194.36,194.32,5.18011664]
[1739629386874,5.1446,194.35,194.32,5.18011664]
[1739629387070,14.28579073,194.33,194.32,0.03481664]
[1739629387377,5.1461,194.29,194.24,56.77528703]
[1739629387572,14.28579073,194.3,194.24,56.77528703]
[1739629387773,14.28579073,194.3,194.25,7.15331872]
[1739629387970,5.1465,194.28,194.25,7.15331872]
[1739629388379,5.18468988,194.28,194.25,7.19231159]
[1739629388680,0.03818988,194.28,194.25,7.19231159]
[1739629388880,14.28579073,194.27,194.25,7.19231159]
[1739629390082,5.1469,194.26,194.25,7.19231159]
[1739629391176,14.28579073,194.27,194.25,7.19231159]
[1739629392384,14.28579073,194.27,194.25,0.03899287]
[1739629393985,0.03818988,194.28,194.25,0.03899287]
[1739629395084,0.03818988,194.28,194.25,5.18619287]
[1739629395282,0.03818988,194.28,194.25,0.03899287]
[1739629396080,0.03818988,194.28,194.25,5.18609287]
[1739629397080,0.03818988,194.28,194.25,0.03899287]
[1739629398186,5.1467,194.27,194.25,0.03899287]
[1739629399286,5.1469,194.26,194.25,0.03899287]
[1739629399587,14.31024436,194.26,194.25,0.03899287]
[1739629403791,14.31024436,194.26,194.17,9.16334436]
[1739629403792,9.16334436,194.26,194.15,9.16334436]
[1739629403990,9.16334436,194.21,194.2,5.1485]
[1739629404187,9.16334436,194.21,194.15,9.16334436]
[1739629404587,9.16334436,194.21,194.18,5.1488]
[1739629404888,9.16334436,194.21,194.15,9.16334436]
[1739629405090,9.20239033,194.21,194.19,5.1488]
[1739629405283,9.20239033,194.21,194.18,0.03549577]
[1739629405682,9.20239033,194.21,194.19,5.1487]
[1739629406786,9.20239033,194.21,194.18,5.18449577]
[1739629406992,14.35079033,194.21,194.18,0.03549577]
[1739629407382,9.20239033,194.21,194.18,0.03549577]
[1739629408386,14.31214436,194.19,194.18,0.03549577]
[1739629408781,9.16334436,194.19,194.18,0.03549577]
[1739629413090,14.31214436,194.19,194.18,0.03549577]
[1739629419998,9.16334436,194.19,194.11,5.1509]
[1739629420193,9.16334436,194.14,194.11,5.1509]
[1739629420589,9.16334436,194.14,194.1,0.18996]
[1739629420994,9.16334436,194.14,194.11,5.1506]
[1739629421195,9.19715109,194.14,194.11,5.18871935]
[1739629421395,9.19715109,194.14,194.11,0.03811935]
[1739629421897,14.34725109,194.14,194.11,0.03811935]
[1739629422100,9.16334436,194.12,194.11,0.03811935]
[1739629433908,0.03380673,194.14,194.12,5.1506]
[1739629435213,9.19715109,194.14,194.11,0.03811935]
[1739629435412,9.16334436,194.12,194.11,0.03811935]
[1739629438411,14.31394436,194.12,194.11,0.03811935]
[1739629439609,5.152,194.07,194.03,0.20824]
[1739629439813,9.16334436,194.06,194.03,0.20824]
[1739629440010,9.16334436,194.06,194.04,5.1527]
[1739629440217,9.16334436,194.1,194.04,9.16334436]
[1739629440619,9.16334436,194.12,194.04,9.16334436]
[1739629440916,0.03640589,194.09,194.08,5.1517]
[1739629441318,9.16334436,194.16,194.12,5.1506]
[1739629442415,9.20284988,194.16,194.12,5.18794939]
[1739629443217,9.20284988,194.16,194.12,0.03734939]
[1739629444912,9.20284988,194.16,194.14,5.15]
[1739629447319,9.20284988,194.16,194.12,5.18774939]
[1739629447519,9.16334436,194.14,194.12,5.18774939]
[1739629447816,9.16334436,194.14,194.12,0.03734939]
[1739629448224,0.03950552,194.16,194.13,5.1501]
[1739629448225,9.20284988,194.16,194.13,5.1501]
[1739629448821,9.20284988,194.16,194.14,5.15]
[1739629449316,0.03950552,194.16,194.14,9.16334436]
[1739629449515,9.16334436,194.2,194.17,5.1492]
[1739629450119,9.16334436,194.2,194.18,5.1489]
[1739629450320,9.16334436,194.2,194.14,9.16334436]
[1739629450513,9.16334436,194.2,194.17,0.03773224]
[1739629450820,0.03652318,194.21,194.2,5.1485]
[1739629451516,0.03652318,194.21,194.17,0.03773224]
[1739629452220,9.16334436,194.18,194.17,0.03773224]
[1739629452620,14.31234436,194.18,194.17,0.03773224]
[1739629454521,9.16334436,194.18,194.17,0.03773224]
[1739629455421,9.16334436,194.2,194.17,0.03773224]
[1739629455622,0.03652318,194.21,194.17,0.03773224]
[1739629455922,0.03652318,194.21,194.18,5.149]
[1739629456126,0.03652318,194.21,194.17,0.03773224]
[1739629456417,0.03652318,194.21,194.2,5.1485]
[1739629456624,9.16334436,194.24,194.19,1.582]
[1739629457319,9.16334436,194.24,194.21,5.148]
[1739629457720,0.03780564,194.24,194.21,5.148]
[1739629458121,0.03780564,194.24,194.22,5.148]
[1739629459324,0.03780564,194.24,194.21,5.18679452]
[1739629459521,0.03780564,194.24,194.21,0.03879452]
[1739629461328,0.03780564,194.24,194.21,5.18679452]
[1739629461831,0.03780564,194.24,194.21,0.03879452]
[1739629464030,5.1478,194.23,194.21,0.03879452]
[1739629464730,5.18530564,194.24,194.21,0.03879452]
[1739629464935,0.03780564,194.24,194.21,0.03879452]
[1739629466426,0.03780564,194.24,194.21,5.18679452]
[1739629466730,0.03780564,194.24,194.21,0.03879452]
[1739629467131,0.03780564,194.24,194.23,5.1477]
[1739629471434,0.03780564,194.24,194.21,0.03879452]
[1739629472836,5.148,194.22,194.21,0.03879452]
[1739629474040,14.31544319,194.23,194.11,28.46399647]
[1739629474236,14.31544319,194.19,194.11,28.46399647]
[1739629475038,14.31544319,194.19,194.1,5.1511]
[1739629475229,0.03273215,194.17,194.13,0.0349581]
[1739629477631,5.18203215,194.17,194.13,0.0349581]
[1739629478239,0.03273215,194.17,194.13,0.0349581]
[1739629478540,5.1496,194.16,194.13,0.0349581]
[1739629478840,0.03273215,194.17,194.13,0.0349581]
[1739629479144,5.18213215,194.17,194.13,0.0349581]
[1739629480640,5.1497,194.16,194.13,0.0349581]
[1739629481642,0.03273215,194.17,194.13,0.0349581]
[1739629481837,0.03273215,194.17,194.13,5.1852581]
[1739629482243,5.18203215,194.17,194.13,0.0349581]
[1739629482843,5.1496,194.16,194.13,0.0349581]
[1739629483342,5.1499,194.15,194.13,0.0349581]
[1739629484139,9.16999148,194.16,194.13,0.0349581]
[1739629484340,5.1501,194.14,194.13,0.0349581]
[1739629488749,14.32994744,194.15,194.04,5.1527]
[1739629489049,14.32994744,194.15,194.03,17.55004744]
[1739629489348,14.32994744,194.15,194.06,5.1521]
[1739629489747,14.32994744,194.15,194.03,17.55004744]
[1739629489949,5.18851825,194.12,194.09,0.03758236]
[1739629490858,0.03761825,194.12,194.09,0.03758236]
[1739629491250,0.03761825,194.12,194.11,5.1509]
[1739629496961,0.03761825,194.12,194.09,0.03758236]
[1739629497254,0.03761825,194.12,194.09,5.18878236]
[1739629497455,0.03761825,194.12,194.09,0.03758236]
[1739629497661,0.03761825,194.12,194.1,5.1511]
[1739629499061,0.03761825,194.12,194.09,0.03758236]
[1739629499261,0.03761825,194.12,194.11,5.1509]
[1739629499662,0.03761825,194.12,194.09,0.03758236]
[1739629499863,0.03761825,194.12,194.1,5.1511]
[1739629500464,0.03761825,194.12,194.11,5.1509]
[1739629500864,205.32994744,194.21,194.09,0.03758236]
[1739629501264,5.1495,194.17,194.06,14.32994744]
[1739629501763,5.1496,194.16,194.06,14.32994744]
[1739629502066,0.03825799,194.13,194.09,0.03323012]
[1739629503164,5.1512,194.1,194.09,0.03323012]
[1739629506070,14.32994744,194.12,194.09,0.03323012]
[1739629506271,0.03825799,194.13,194.09,0.03323012]
[1739629507669,9.21170458,194.13,194.09,0.03323012]
[1739629507972,0.03825799,194.13,194.09,0.03323012]
[1739629508272,0.03825799,194.13,194.1,5.1511]
[1739629509864,0.03825799,194.13,194.09,0.03323012]
[1739629510171,9.21170458,194.13,194.09,0.03323012]
[1739629510770,9.17344659,194.11,194.09,0.03323012]
[1739629511567,14.37609827,194.13,194.09,0.03323012]
[1739629511763,19.48904028,194.1,194.09,0.03323012]
[1739629512166,14.33784028,194.1,194.03,28.46399647]
[1739629512371,5.1521,194.07,194.03,28.46399647]
[1739629512566,14.33784028,194.1,194.02,28.46399647]
[1739629513070,5.152,194.07,194.02,33.61729647]
[1739629513369,0.03890519,194.06,194.03,0.03627733]
[1739629517665,0.03890519,194.06,194.04,5.1525]
[1739629518070,0.03890519,194.06,194.03,0.03627733]
[1739629519375,0.03890519,194.06,194.04,5.1528]
[1739629519672,0.03890519,194.06,194.03,0.03627733]
[1739629520377,0.03890519,194.06,194.03,5.18907733]
[1739629520671,0.03890519,194.06,194.03,0.03627733]
[1739629521572,5.19120519,194.06,194.03,0.03627733]
[1739629522673,0.03890519,194.06,194.03,0.03627733]
[1739629522874,0.03890519,194.06,194.04,5.1527]
[1739629523173,0.03890519,194.06,194.03,0.03627733]
[1739629526373,0.03890519,194.06,194.04,5.1528]
[1739629527370,0.03890519,194.06,194.03,0.03627733]
[1739629528172,0.03890519,194.06,194.04,5.1525]
[1739629528372,0.03890519,194.06,194.03,0.03627733]
[1739629528774,0.03890519,194.06,194.04,5.1526]
[1739629529776,0.03890519,194.06,194.05,5.1525]
[1739629531575,0.03890519,194.06,194.05,14.32770528]
[1739629533976,9.17520528,194.11,194.05,14.32770528]
[1739629534181,9.17520528,194.13,194.08,5.1517]
[1739629534484,14.32560528,194.13,194.07,9.17520528]
[1739629534678,5.1504,194.13,194.07,9.17520528]
[1739629534881,5.1504,194.13,194.09,9.17520528]
[1739629535282,5.18579524,194.13,194.1,5.1512]
[1739629536683,0.03539524,194.13,194.1,5.1512]
[1739629537682,0.03539524,194.13,194.09,14.36022163]
[1739629538181,0.03539524,194.13,194.1,5.1511]
[1739629538379,0.03539524,194.13,194.09,9.20882163]
[1739629538782,0.03539524,194.13,194.1,5.1511]
[1739629539182,0.03539524,194.13,194.09,9.20882163]
[1739629539483,5.1506,194.12,194.09,0.03361635]
[1739629540283,9.21060052,194.13,194.09,5.18501635]
[1739629541687,5.1506,194.12,194.09,0.03361635]
[1739629542888,5.1506,194.12,194.09,5.18501635]
[1739629543688,9.21060052,194.13,194.09,5.18501635]
[1739629543888,14.36100052,194.13,194.09,5.18501635]
[1739629544290,9.21060052,194.13,194.09,0.03361635]
[1739629544690,9.21060052,194.13,194.09,5.18481635]
[1739629544887,9.21060052,194.13,194.09,0.03361635]
[1739629545590,14.36120052,194.13,194.09,5.18501635]
[1739629545990,5.18599524,194.13,194.09,5.18501635]
[1739629548191,0.03539524,194.13,194.09,9.20882163]
[1739629548688,0.03539524,194.13,194.09,0.03361635]
[1739629549193,0.03539524,194.13,194.1,5.1509]
[1739629550691,0.03539524,194.13,194.09,0.03361635]
[1739629550894,0.03539524,194.13,194.12,5.1506]
[1739629551394,0.03539524,194.13,194.09,9.20882163]
[1739629551584,0.03539524,194.13,194.11,5.1507]
[1739629553492,0.03539524,194.13,194.09,9.20882163]
[1739629554396,0.03539524,194.13,194.11,5.1507]
[1739629558800,0.03539524,194.13,194.09,9.20882163]
[1739629558998,0.03539524,194.13,194.12,5.1506]
[1739629560700,9.21060052,194.13,194.09,0.03361635]
[1739629560896,5.1508,194.12,194.09,0.03361635]
[1739629561399,9.21060052,194.13,194.09,0.03361635]
[1739629561592,9.21060052,194.13,194.1,5.1511]
[1739629562400,0.03539524,194.13,194.1,5.1511]
[1739629562895,0.03539524,194.13,194.11,5.1508]
[1739629563300,0.03539524,194.13,194.09,0.03361635]
[1739629563702,0.03539524,194.13,194.1,5.1509]
[1739629564100,0.03539524,194.13,194.09,0.03361635]
[1739629564302,0.03539524,194.13,194.11,5.1508]
[1739629564799,30.86,194.11,193.95,211.48984651]
[1739629565101,9.17520528,193.97,193.95,168.66702205]
[1739629565301,14.32980528,193.97,193.95,168.66702205]
[1739629565502,14.32980528,193.97,193.95,123.50883184]
[1739629565705,3.69486288,193.96,193.95,94.98503184]
[1739629565995,13.18069405,193.96,193.95,56.51542802]
[1739629566195,47.39341008,193.96,193.95,23.30804216]
[1739629566400,5.1551,193.95,193.94,0.03889722]
[1739629566601,27.14509939,193.95,193.93,6.112e-05]
[1739629566802,27.14509939,193.95,193.77,9.17520528]
[1739629566803,12.81479411,193.94,193.77,9.17520528]
[1739629567002,9.17520528,193.9,193.77,9.17520528]
[1739629567205,21.98999939,193.9,193.89,0.0001]
[1739629567399,27.00384982,193.9,193.89,0.0001]
[1739629567601,92.8138381,193.9,193.71,14.38281232]
[1739629567902,16.50965699,193.89,193.88,0.03486005]
[1739629568197,16.50965699,193.89,193.78,49.08812705]
[1739629568403,12.81479411,193.88,193.78,49.08812705]
[1739629568598,12.81479411,193.87,193.78,49.08812705]
[1739629568803,16.50965699,193.86,193.71,14.38281232]
[1739629569003,12.81479411,193.85,193.71,14.38281232]
[1739629569207,0.03734496,193.8,193.77,0.03741866]
[1739629569601,0.03734496,193.8,193.71,14.38281232]
[1739629569901,208.4652558,193.78,193.71,14.38281232]
[1739629570101,208.4652558,193.78,193.71,14.31060692]
[1739629570698,208.4652558,193.78,193.74,14.38281232]
[1739629570899,87.25676932,193.77,193.74,14.38281232]
[1739629571103,87.25676932,193.77,193.76,14.38281232]
[1739629571402,84.74026932,193.77,193.76,14.38281232]
[1739629571601,138.60276455,193.82,193.76,14.38281232]
[1739629571906,138.60276455,193.82,193.8,14.38281232]
[1739629572204,138.60276455,193.85,193.8,14.38281232]
[1739629572604,138.60276455,193.9,193.8,19.54191232]
[1739629572801,0.03350208,193.84,193.81,0.03352208]
[1739629574203,0.03350208,193.84,193.81,5.19232208]
[1739629574601,0.03350208,193.84,193.82,5.1586]
[1739629575710,0.03350208,193.84,193.81,14.38281232]
[1739629576303,138.60276455,193.86,193.81,14.38281232]
[1739629576502,138.60276455,193.86,193.85,14.38281232]
[1739629577301,173.25345569,193.89,193.85,14.38281232]
[1739629577504,6.632e-05,193.87,193.84,0.03772019]
[1739629577704,173.25345569,193.96,193.81,3.2218]
[1739629577900,173.25345569,193.96,193.87,14.38281232]
[1739629578303,173.25345569,193.96,193.87,5.1571]
[1739629578505,3.48380853,193.95,193.87,5.1571]
[1739629578711,3.64181796,193.95,193.84,14.38281232]
[1739629578912,0.03889529,193.93,193.89,0.03300732]
[1739629580016,0.03889529,193.93,193.89,5.18970732]
[1739629580320,0.03889529,193.93,193.89,0.03300732]
[1739629580510,0.03889529,193.93,193.91,5.1562]
[1739629580711,0.03889529,193.93,193.89,0.03300732]
[1739629581215,0.03889529,193.93,193.9,5.1564]
[1739629581611,0.03889529,193.93,193.89,0.03300732]
[1739629581814,0.03889529,193.93,193.89,5.18960732]
[1739629582012,0.03889529,193.93,193.89,0.03300732]
[1739629582213,0.03889529,193.93,193.89,5.18970732]
[1739629583617,0.03889529,193.93,193.9,5.1564]
[1739629584515,0.03889529,193.93,193.89,0.03300732]
[1739629584723,0.03889529,193.93,193.91,5.156]
[1739629585916,0.03889529,193.93,193.92,5.1559]
[1739629588018,0.03889529,193.93,193.92,108.65652523]
[1739629588319,2.31070829,194.0,193.92,103.50062523]
[1739629588514,4.77533253,193.99,193.92,103.50062523]
[1739629588721,14.38281232,193.97,193.92,103.50062523]
[1739629589020,3.48596981,193.96,193.92,103.50062523]
[1739629589211,5.1551,193.96,193.92,103.50062523]
[1739629589412,3.48632897,193.95,193.92,103.53573942]
[1739629589617,5.19248269,193.96,193.93,31.23478525]
[1739629589823,3.48638385,193.95,193.93,31.23478525]
[1739629590025,5.1554,193.94,193.93,31.23478525]
[1739629590324,14.38281232,193.95,193.93,31.23478525]
[1739629591323,3.48758317,193.94,193.92,0.03511419]
[1739629591516,14.38281232,193.95,193.92,0.03511419]
[1739629591721,4.77670151,193.94,193.92,0.03511419]
[1739629591916,3.48750389,193.93,193.85,83.07463937]
[1739629592121,14.38281232,193.95,193.85,83.07463937]
[1739629592323,4.77660313,193.94,193.85,83.07463937]
[1739629592522,4.77660313,193.93,193.85,83.07463937]
[1739629592719,19.15941545,193.92,193.85,83.07463937]
[1739629592927,14.38281232,193.92,193.85,83.07463937]
[1739629593227,0.03286631,193.9,193.87,0.03449861]
[1739629593618,0.03286631,193.9,193.88,5.157]
[1739629594027,14.38281232,193.89,193.85,81.44403937]
[1739629594223,4.77724466,193.88,193.85,81.44403937]
[1739629594418,0.03286631,193.9,193.85,81.44403937]
[1739629594419,14.38281232,193.86,193.85,81.44403937]
[1739629595527,14.38281232,193.86,193.85,75.79603937]
[1739629595528,19.1601624,193.86,193.85,75.79603937]
[1739629595720,24.31771534,193.86,193.85,75.79603937]
[1739629595924,24.31771534,193.86,193.84,0.03373218]
[1739629596121,3.48865498,193.85,193.84,0.03373218]
[1739629596331,14.38281232,193.89,193.84,0.03373218]
[1739629596630,4.77844187,193.88,193.84,0.03373218]
[1739629596826,4.77844187,193.87,193.84,0.03373218]
[1739629597026,4.77844187,193.86,193.84,0.03373218]
[1739629597223,3.48996056,193.85,193.84,0.03373218]
[1739629597733,0.03286631,193.9,193.85,5.1577]
[1739629598029,4.81271689,193.9,193.85,5.1577]
[1739629598221,4.78124066,193.89,193.84,0.03373218]
[1739629598420,4.78146441,193.88,193.84,0.03373218]
[1739629598629,0.03286631,193.9,193.84,0.03373218]
[1739629598824,9.93857211,193.89,193.84,0.03373218]
[1739629599030,5.1568,193.89,193.84,5.19153218]
[1739629599529,4.78398349,193.88,193.84,5.19153218]
[1739629599723,3.49453916,193.87,193.84,5.19153218]
[1739629599929,5.1568,193.89,193.84,5.19153218]
[1739629600131,4.78384309,193.88,193.84,5.19153218]
[1739629600329,4.78384309,193.87,193.84,0.03373218]
[1739629600530,5.18936631,193.9,193.85,5.1577]
[1739629600731,4.78607912,193.89,193.85,5.1577]
[1739629601030,0.03286631,193.9,193.86,5.1575]
[1739629601326,4.78813479,193.89,193.86,5.1575]
[1739629601531,0.03286631,193.9,193.86,5.1575]
[1739629601723,4.78873529,193.89,193.86,5.1575]
[1739629601927,0.03286631,193.9,193.86,5.1575]
[1739629602125,4.78874098,193.89,193.86,5.1575]
[1739629602328,4.78875821,193.88,193.84,0.03373218]
[1739629602533,3.49939153,193.87,193.84,0.03373218]
[1739629602726,8.77293545,193.89,193.84,0.03373218]
[1739629602932,4.79134846,193.88,193.85,5.1578]
[1739629603127,4.79133167,193.87,193.85,5.1578]
[1739629603333,3.61914152,193.87,193.85,5.1578]
[1739629604337,12.47539133,193.86,193.84,0.03373218]
[1739629604536,4.79818285,193.85,193.84,0.03373218]
[1739629604932,8.42084548,193.85,193.84,0.03373218]
[1739629606132,8.42099594,193.85,193.84,0.03373218]
[1739629606331,10.48448027,193.85,193.84,0.03373218]
[1739629606535,16.09885568,193.85,193.84,0.03373218]
[1739629606931,8.42099594,193.85,193.84,0.03373218]
[1739629607136,16.10837553,193.85,193.84,0.03373218]
[1739629607335,21.26617553,193.85,193.84,0.03373218]
[1739629607634,16.10837553,193.85,193.84,0.03373218]
[1739629607835,21.26617553,193.85,193.84,0.03373218]
[1739629608733,26.2694619,193.85,193.84,0.03373218]
[1739629609137,21.26617553,193.85,193.84,0.03373218]
[1739629609639,21.29981922,193.85,193.84,0.03373218]
[1739629612339,5.1586,193.83,193.78,5.1596]
[1739629612638,12.51935659,193.82,193.78,5.1596]
[1739629612840,12.51935659,193.81,193.77,1.6594]
[1739629613033,10.45610463,193.8,193.77,1.6594]
[1739629613234,4.81511676,193.79,193.77,1.6594]
[1739629613435,5.02470826,193.86,193.82,5.1585]
[1739629613640,12.51956097,193.85,193.82,5.1585]
[1739629613837,12.51956097,193.84,193.82,5.19528942]
[1739629614036,16.15987416,193.83,193.82,0.03678942]
[1739629615537,16.15983139,193.83,193.82,5.19538942]
[1739629615740,5.9402133,193.83,193.82,5.19538942]
[1739629618443,5.94003746,193.83,193.82,5.19538942]
[1739629619141,3.6403145,193.83,193.82,5.19538942]
[1739629619748,4.92981208,193.83,193.82,5.19538942]
[1739629620838,3.6403145,193.83,193.82,5.19538942]
[1739629621949,0.03364814,193.86,193.85,5.1578]
[1739629622136,1.32313823,193.86,193.85,5.1578]
[1739629622542,4.96595007,193.86,193.85,5.1578]
[1739629623445,14.38281232,193.92,193.82,0.03678942]
[1739629623650,7.64680407,193.91,193.86,9.19363315]
[1739629623844,7.64680407,193.9,193.86,9.19363315]
[1739629624040,14.34953315,193.93,193.89,5.1565]
[1739629624247,7.64806619,193.92,193.86,9.19363315]
[1739629624442,7.64806619,193.91,193.9,5.1565]
[1739629624646,0.03801046,193.91,193.9,5.1565]
[1739629626347,14.35987255,194.0,193.91,5.1562]
[1739629626548,7.64833082,193.99,193.91,5.1562]
[1739629626750,7.64833082,193.98,193.91,5.1562]
[1739629626950,5.155,193.96,193.92,5.1559]
[1739629627251,7.64833082,193.95,193.88,14.35987255]
[1739629627450,7.64833082,193.94,193.92,0.03601602]
[1739629627652,9.07594756,193.93,193.92,0.03601602]
[1739629627853,3.49005868,193.93,193.92,0.03601602]
[1739629628855,3.49005793,193.93,193.92,0.03601602]
[1739629629054,9.07415061,193.93,193.92,0.03601602]
[1739629629251,9.07495774,193.93,193.92,0.03601602]
[1739629629552,3.49036836,193.93,193.92,0.03601602]
[1739629630353,3.49036836,193.93,193.92,5.19191602]
[1739629630844,9.07480747,193.93,193.92,5.19191602]
[1739629631051,3.49036836,193.93,193.92,5.19191602]
[1739629631545,9.07480747,193.93,193.92,5.19191602]
[1739629631749,3.49036836,193.93,193.92,5.19191602]
[1739629632150,9.07588307,193.93,193.92,5.19191602]
[1739629632349,3.49036836,193.93,193.92,5.19191602]
[1739629632750,9.07588307,193.93,193.92,5.19191602]
[1739629632951,3.49036836,193.93,193.92,5.19191602]
[1739629633153,5.55280931,193.93,193.92,5.19191602]
[1739629633352,11.13832402,193.93,193.92,5.19191602]
[1739629634859,11.13833305,193.93,193.92,5.19191602]
[1739629635360,12.42736415,193.93,193.92,5.19191602]
[1739629635660,10.36491417,193.93,193.92,5.19191602]
[1739629635855,16.02590121,193.93,193.92,5.19191602]
[1739629637461,8.37794258,193.93,193.92,5.19191602]
[1739629638163,3.59854312,193.93,193.92,5.19191602]
[1739629638456,7.08775563,193.93,193.92,5.19191602]
[1739629638662,3.59854312,193.93,193.92,5.19191602]
[1739629639465,0.03643156,193.96,193.92,0.03601602]
[1739629639665,0.03643156,193.96,193.95,5.1551]
[1739629639864,3.52465073,193.96,193.95,5.1551]
[1739629640065,0.03643156,193.96,193.95,5.1551]
[1739629641568,8.40454363,193.96,193.95,5.1551]
[1739629641773,8.40454363,193.96,193.94,5.1554]
[1739629641976,4.7745387,193.95,193.94,5.1554]
[1739629642164,8.36811207,193.95,193.94,5.1554]
[1739629643476,8.36665459,193.95,193.94,5.1554]
[1739629645176,8.36501124,193.95,193.94,5.1554]
[1739629646575,8.36501124,193.95,193.92,5.19181602]
[1739629646781,13.95906503,193.94,193.92,0.03601602]
[1739629646976,4.77140105,193.93,193.92,0.03601602]
[1739629647172,8.36497442,193.93,193.92,0.03601602]
[1739629647771,15.99885598,193.93,193.92,0.03601602]
[1739629648179,15.99918525,193.93,193.92,0.03601602]
[1739629648872,21.15513287,193.93,193.92,0.03601602]
[1739629650776,15.99943287,193.93,193.92,0.03601602]
[1739629651978,13.93675209,193.93,193.92,0.03601602]
[1739629652177,15.99933781,193.93,193.92,0.03601602]
[1739629653382,16.0027278,193.93,193.92,0.03601602]
[1739629654879,21.1584278,193.93,193.92,0.03601602]
[1739629655082,16.0027278,193.93,193.83,12.31056398]
[1739629655385,9.18766398,193.9,193.88,5.157]
[1739629655585,4.7727517,193.89,193.88,5.157]
[1739629655978,8.36632507,193.89,193.88,5.157]
[1739629656177,8.36632507,193.89,193.83,12.31056398]
[1739629656383,4.7727517,193.88,193.87,0.03884613]
[1739629656983,8.36632507,193.88,193.87,0.03884613]
[1739629658086,8.36632507,193.88,193.87,5.19614613]